bitfinex/quotes_SOLUSD_20230101
["timestamp","ask_amount","ask_price","bid_price","bid_amount"]
[1672561997438,40.0,9.7516,9.7432,23.3502]
[1672561997647,77.0,9.7515,9.7433,40.0]
[1672561997842,40.0,9.7516,9.7433,40.0]
[1672561998054,40.0,9.7514,9.7434,23.3502]
[1672561998278,77.0,9.7513,9.7434,23.3502]
[1672561998900,77.0,9.7513,9.7435,23.3502]
[1672561999117,77.0,9.7515,9.7435,23.3502]
[1672561999631,77.0,9.7515,9.7436,23.6204]
[1672562000274,40.0,9.7514,9.7437,23.6204]
[1672562000488,77.0,9.7513,9.7437,23.6204]
[1672562000699,40.0,9.7512,9.7437,23.6204]
[1672562000901,40.0,9.751,9.7437,23.6204]
[1672562001115,77.0,9.7509,9.7437,23.6204]
[1672562001328,40.0,9.7508,9.7437,23.6204]
[1672562001644,77.0,9.7507,9.7437,23.6204]
[1672562001835,77.0,9.7509,9.7437,23.6204]
[1672562003322,77.0,9.7511,9.7437,23.6204]
[1672562003728,40.0,9.7512,9.7437,23.6204]
[1672562003935,77.0,9.7511,9.7437,23.6204]
[1672562004788,40.0,9.751,9.7437,23.6204]
[1672562004998,40.0,9.7508,9.7437,23.6204]
[1672562005212,77.0,9.7507,9.7437,23.6204]
[1672562005953,40.0,9.751,9.7437,23.6204]
[1672562006274,40.0,9.7508,9.7437,23.6204]
[1672562006584,77.0,9.7507,9.7437,23.6204]
[1672562006990,461.33010153,9.7714,9.7437,23.6204]
[1672562006991,40.0,9.7516,9.7437,23.6204]
[1672562007200,40.0,9.7514,9.7438,24.6354]
[1672562007410,77.0,9.7513,9.7438,24.6354]
[1672562007831,76.99,9.7517,9.7438,24.6354]
[1672562008045,40.0,9.7516,9.7438,24.6354]
[1672562008255,77.0,9.7515,9.7438,24.6354]
[1672562008470,40.0,9.7514,9.7439,24.6354]
[1672562008677,40.0,9.7512,9.7439,24.6354]
[1672562008894,77.0,9.7511,9.7439,24.6354]
[1672562009514,76.99,9.7517,9.7439,24.6354]
[1672562010456,76.99,9.7517,9.744,23.4871]
[1672562016993,76.99,9.7517,9.7441,40.0]
[1672562017520,76.99,9.7517,9.7443,40.0]
[1672562018467,76.99,9.7517,9.7443,347.0]
[1672562019623,76.99,9.7517,9.7443,40.0]
[1672562020867,76.99,9.7517,9.7442,24.7726]
[1672562021089,40.0,9.7516,9.7442,24.7726]
[1672562021297,77.0,9.7515,9.7442,24.7726]
[1672562021508,40.0,9.7514,9.7442,24.7726]
[1672562021717,40.0,9.7512,9.7442,24.7726]
[1672562021912,77.0,9.7511,9.7442,24.7726]
[1672562022333,76.99,9.7517,9.7442,24.7726]
[1672562024662,76.99,9.7517,9.7443,40.0]
[1672562025277,76.99,9.7517,9.7442,24.7726]
[1672562026031,40.0,9.7516,9.7383,77.1]
[1672562026338,40.0,9.7516,9.733,615.4]
[1672562026339,75.04284485,9.7509,9.7363,77.12]
[1672562026553,172.04284485,9.7508,9.7331,236.7242]
[1672562026787,284.79584485,9.7508,9.7331,236.7242]
[1672562026960,40.0,9.7506,9.7332,40.0]
[1672562027170,97.0,9.7505,9.7334,307.0]
[1672562027382,471.20724287,9.7505,9.7336,307.0]
[1672562027587,229.64994287,9.7504,9.7339,40.0]
[1672562027910,40.0,9.7502,9.7342,40.0]
[1672562028118,97.01,9.7501,9.7344,307.0]
[1672562028328,40.0,9.75,9.7346,307.0]
[1672562028541,40.0,9.7498,9.7348,307.0]
[1672562028740,40.0,9.7496,9.735,307.0]
[1672562028944,97.01,9.7495,9.7352,307.0]
[1672562029182,75.04284485,9.7449,9.7352,307.0]
[1672562029368,40.0,9.7447,9.7353,136.2081]
[1672562029579,40.0,9.7445,9.7354,136.2081]
[1672562029789,97.05,9.7444,9.7355,136.2081]
[1672562030019,40.0,9.7443,9.7355,136.2081]
[1672562030233,40.0,9.7441,9.7355,136.2081]
[1672562030553,40.0,9.7439,9.7356,24.345]
[1672562030760,77.06,9.7438,9.7356,24.345]
[1672562030978,60.0,9.7437,9.7357,24.345]
[1672562031167,40.0,9.7435,9.7357,24.345]
[1672562031376,97.06,9.7434,9.7357,24.345]
[1672562031587,40.0,9.7433,9.7358,24.345]
[1672562031797,40.0,9.7431,9.7358,24.345]
[1672562032023,40.0,9.7429,9.7358,24.345]
[1672562032216,40.0,9.7427,9.7358,24.345]
[1672562032428,97.07,9.7426,9.7358,24.345]
[1672562032638,40.0,9.7425,9.7358,24.345]
[1672562032862,40.0,9.7423,9.7358,24.345]
[1672562033077,97.07,9.7422,9.7358,24.345]
[1672562033272,40.0,9.7421,9.7358,24.345]
[1672562033478,40.0,9.7419,9.7358,24.345]
[1672562033699,77.07,9.7418,9.7358,24.345]
[1672562033908,40.0,9.7417,9.7358,24.345]
[1672562034132,40.0,9.7415,9.7358,24.345]
[1672562034447,40.0,9.7413,9.7358,24.345]
[1672562034759,40.0,9.7411,9.7358,24.345]
[1672562034963,77.08,9.741,9.7358,24.345]
[1672562035169,40.0,9.7409,9.7358,24.345]
[1672562035494,40.0,9.7407,9.7358,24.345]
[1672562035691,40.0,9.7405,9.7358,24.345]
[1672562035892,40.0,9.7403,9.7358,24.345]
[1672562036122,77.08,9.7402,9.7358,24.345]
[1672562036335,40.0,9.7401,9.7358,24.345]
[1672562036533,77.09,9.74,9.7358,24.345]
[1672562036740,40.0,9.7399,9.7358,24.345]
[1672562036959,77.09,9.7398,9.7358,24.345]
[1672562037181,40.0,9.7401,9.7358,24.345]
[1672562037386,77.09,9.74,9.7358,24.345]
[1672562037582,40.0,9.7399,9.7358,24.345]
[1672562037905,40.0,9.7397,9.7358,24.345]
[1672562038123,40.0,9.7395,9.7358,24.345]
[1672562038328,40.0,9.7393,9.7358,24.345]
[1672562038541,77.09,9.7392,9.7358,24.345]
[1672562038946,77.07,9.7416,9.7349,23.44]
[1672562039174,40.0,9.7415,9.7349,23.44]
[1672562039367,77.07,9.7414,9.7349,23.44]
[1672562039570,57.46107333,9.7426,9.7349,23.44]
[1672562039784,20.0,9.7425,9.735,40.0]
[1672562040001,20.0,9.744,9.7352,40.0]
[1672562040222,77.06,9.7439,9.7354,307.0]
[1672562040415,20.0,9.7438,9.7355,40.0]
[1672562040625,77.06,9.7437,9.7355,40.0]
[1672562040851,20.0,9.7436,9.7357,40.0]
[1672562041058,77.06,9.7435,9.7357,40.0]
[1672562041381,20.0,9.7434,9.7357,40.0]
[1672562041596,77.06,9.7433,9.7358,23.6729]
[1672562042119,20.0,9.7432,9.7358,23.6729]
[1672562042331,40.0,9.743,9.7362,1.04881215]
[1672562042530,97.06,9.7429,9.7362,1.04881215]
[1672562050296,40.0,9.7428,9.7362,1.04881215]
[1672562050505,97.06,9.7427,9.7362,1.04881215]
[1672562054601,40.0,9.7426,9.7362,1.04881215]
[1672562054816,40.0,9.7424,9.7362,1.04881215]
[1672562055024,97.07,9.7423,9.7362,1.04881215]
[1672562055243,40.0,9.7422,9.7362,1.04881215]
[1672562055451,40.0,9.742,9.7362,1.04881215]
[1672562055664,40.0,9.7418,9.7362,1.04881215]
[1672562055881,77.07,9.7417,9.7362,1.04881215]
[1672562056088,40.0,9.7416,9.7362,1.04881215]
[1672562056290,40.0,9.7414,9.7362,1.04881215]
[1672562056614,40.0,9.7412,9.7362,1.04881215]
[1672562056839,40.0,9.741,9.7362,1.04881215]
[1672562057048,77.08,9.7409,9.7362,1.04881215]
[1672562057261,40.0,9.7408,9.7362,1.04881215]
[1672562057459,40.0,9.7406,9.7362,1.04881215]
[1672562057663,40.0,9.7404,9.7362,1.04881215]
[1672562057886,77.08,9.7403,9.7362,1.04881215]
[1672562058715,40.0,9.7404,9.7362,1.04881215]
[1672562058929,77.08,9.7403,9.7362,1.04881215]
[1672562059142,40.0,9.7402,9.7362,1.04881215]
[1672562059351,77.09,9.7401,9.7362,1.04881215]
[1672562059774,77.08,9.7407,9.7362,1.04881215]
[1672562060304,40.0,9.7406,9.7362,1.04881215]
[1672562060521,77.08,9.7405,9.7362,1.04881215]
[1672562060841,40.0,9.7408,9.7362,1.04881215]
[1672562061052,40.0,9.7406,9.7362,1.04881215]
[1672562061261,77.08,9.7405,9.7362,1.04881215]
[1672562062394,77.08,9.7407,9.7362,1.04881215]
[1672562062603,40.0,9.7406,9.7362,1.04881215]
[1672562062811,40.0,9.7404,9.7362,1.04881215]
[1672562063032,77.08,9.7403,9.7362,1.04881215]
[1672562063452,40.0,9.7402,9.7362,1.04881215]
[1672562063774,40.0,9.74,9.7362,1.04881215]
[1672562063989,77.09,9.7399,9.7362,1.04881215]
[1672562064386,40.0,9.7398,9.7362,1.04881215]
[1672562064812,40.0,9.7396,9.7362,1.04881215]
[1672562065038,77.09,9.7395,9.7362,1.04881215]
[1672562065248,40.0,9.7394,9.7362,1.04881215]
[1672562065456,77.09,9.7393,9.7362,1.04881215]
[1672562065663,40.0,9.7392,9.7362,1.04881215]
[1672562065866,40.0,9.739,9.7362,1.04881215]
[1672562066076,40.0,9.7388,9.7362,1.04881215]
[1672562066288,77.1,9.7387,9.7362,1.04881215]
[1672562066515,40.0,9.7386,9.7362,1.04881215]
[1672562066702,77.1,9.7385,9.7362,1.04881215]
[1672562066928,40.0,9.7384,9.7362,1.04881215]
[1672562067132,40.0,9.7382,9.7362,1.04881215]
[1672562067358,40.0,9.738,9.7362,1.04881215]
[1672562067674,77.1,9.7379,9.7362,1.04881215]
[1672562067887,40.0,9.738,9.7362,1.04881215]
[1672562068101,40.0,9.7378,9.7362,1.04881215]
[1672562068297,77.1,9.7377,9.7362,1.04881215]
[1672562068617,40.0,9.7376,9.7362,1.04881215]
[1672562068933,77.11,9.7375,9.7362,1.04881215]
[1672562069334,97.46107333,9.7374,9.7362,0.00881215]
[1672562069565,40.0,9.7365,9.7362,0.00881215]
[1672562069778,40.0,9.7363,9.7362,0.00881215]
[1672562069982,137.12,9.7363,9.7362,0.00881215]
[1672562070301,194.58107333,9.7363,9.7362,0.00881215]
[1672562070610,218.12917333,9.7363,9.7362,0.00881215]
[1672562071763,290.96737842,9.7363,9.7362,0.00881215]
[1672562072290,359.15804287,9.7363,9.7362,0.00881215]
[1672562073322,359.15804287,9.7363,9.7284,1.09883695]
[1672562073649,40.0,9.7361,9.7284,1.09883695]
[1672562073861,97.12,9.736,9.7284,1.09883695]
[1672562074074,40.0,9.7359,9.7284,1.09883695]
[1672562074273,40.0,9.7357,9.7284,1.09883695]
[1672562074488,40.0,9.7355,9.7284,1.09883695]
[1672562074697,40.0,9.7353,9.7284,1.09883695]
[1672562074915,97.12,9.7352,9.7284,1.09883695]
[1672562075124,40.0,9.7351,9.7284,1.09883695]
[1672562075336,40.0,9.7349,9.7284,1.09883695]
[1672562075540,97.13,9.7348,9.7284,1.09883695]
[1672562075757,40.0,9.7347,9.7284,1.09883695]
[1672562075973,40.0,9.7345,9.7284,1.09883695]
[1672562076179,97.13,9.7344,9.7284,1.09883695]
[1672562076374,40.0,9.7343,9.7284,1.09883695]
[1672562076584,40.0,9.7341,9.7284,1.09883695]
[1672562076795,77.13,9.734,9.7284,1.09883695]
[1672562077005,20.0,9.7339,9.7284,1.09883695]
[1672562077230,77.14,9.7338,9.7284,1.09883695]
[1672562077440,20.0,9.7337,9.7284,1.09883695]
[1672562077643,40.0,9.7335,9.7284,1.09883695]
[1672562077849,97.14,9.7334,9.7284,1.09883695]
[1672562078070,77.14,9.7334,9.7284,1.09883695]
[1672562078274,20.0,9.7333,9.7284,1.09883695]
[1672562078484,77.14,9.7332,9.7284,1.09883695]
[1672562078689,20.0,9.7331,9.7284,1.09883695]
[1672562078909,77.14,9.733,9.7284,1.09883695]
[1672562079114,20.0,9.7329,9.7284,1.09883695]
[1672562079651,77.14,9.7328,9.7284,1.09883695]
[1672562079853,20.0,9.7327,9.7284,1.09883695]
[1672562080580,57.46107333,9.7343,9.7284,1.09883695]
[1672562080781,75.93292276,9.7465,9.7287,40.0]
[1672562080990,75.93292276,9.7465,9.7284,1.09883695]
[1672562080991,47.3504,9.7459,9.729,40.0]
[1672562081211,40.0,9.7457,9.7292,307.0]
[1672562081420,40.0,9.7455,9.7294,307.0]
[1672562081621,40.0,9.7453,9.7297,40.0]
[1672562081853,40.0,9.7453,9.7284,80.24178104]
[1672562081854,97.04,9.7452,9.73,40.0]
[1672562082050,40.0,9.7451,9.7302,307.0]
[1672562082262,40.0,9.7449,9.7305,40.0]
[1672562082476,97.05,9.7448,9.7308,40.0]
[1672562082683,40.0,9.7447,9.731,40.0]
[1672562082994,40.0,9.7445,9.7312,40.0]
[1672562083206,77.05,9.7444,9.7312,1592.35594602]
[1672562083414,37.49392366,9.7446,9.7314,40.0]
[1672562083415,77.05,9.7445,9.7314,40.0]
[1672562083632,13.20582366,9.7444,9.7314,40.0]
[1672562083835,90.25582366,9.7443,9.7316,40.0]
[1672562084037,20.0,9.7442,9.7316,40.0]
[1672562084255,77.05,9.7441,9.7316,40.0]
[1672562084484,20.0,9.744,9.7318,40.0]
[1672562084794,77.06,9.7439,9.7318,40.0]
[1672562084990,77.06,9.7439,9.732,40.0]
[1672562084991,20.0,9.7438,9.732,40.0]
[1672562085195,77.06,9.7437,9.732,40.0]
[1672562085410,20.0,9.7436,9.732,40.0]
[1672562085621,77.06,9.7435,9.7322,40.0]
[1672562085839,20.0,9.7434,9.7322,40.0]
[1672562086041,77.06,9.7433,9.7322,40.0]
[1672562086253,20.0,9.7432,9.7324,40.0]
[1672562086584,77.06,9.7431,9.7324,40.0]
[1672562086795,20.0,9.743,9.7326,40.0]
[1672562087103,77.06,9.7429,9.7326,40.0]
[1672562087326,20.0,9.7428,9.7328,40.0]
[1672562087635,77.06,9.7427,9.7328,40.0]
[1672562087845,20.0,9.7426,9.733,40.0]
[1672562088163,77.07,9.7425,9.733,40.0]
[1672562088359,20.0,9.7424,9.7332,40.0]
[1672562088557,77.07,9.7423,9.7332,40.0]
[1672562088770,20.0,9.7422,9.7332,40.0]
[1672562088988,77.07,9.7421,9.7334,40.0]
[1672562089835,77.07,9.7421,9.7336,40.0]
[1672562090243,77.07,9.7421,9.7338,40.0]
[1672562090892,77.07,9.7421,9.734,40.0]
[1672562091509,77.07,9.7421,9.7342,40.0]
[1672562092144,77.07,9.7421,9.7344,40.0]
[1672562092876,77.07,9.7421,9.7344,64.3336]
[1672562093720,77.07,9.7421,9.7345,40.0]
[1672562094129,77.07,9.7421,9.7345,64.4075]
[1672562096563,77.07,9.7421,9.7346,307.0]
[1672562096770,20.0,9.7422,9.7347,40.0]
[1672562096974,20.0,9.7443,9.7347,40.0]
[1672562097185,40.0,9.7441,9.7348,166.9141]
[1672562097398,97.05,9.744,9.7349,40.0]
[1672562097809,40.0,9.7439,9.7351,40.0]
[1672562098024,40.0,9.7437,9.7351,40.0]
[1672562098249,97.06,9.7436,9.7351,40.0]
[1672562098449,40.0,9.7435,9.7352,24.3032]
[1672562098662,40.0,9.7433,9.7352,24.3032]
[1672562098864,97.06,9.7432,9.7352,24.3032]
[1672562099084,97.06,9.7432,9.7353,24.3032]
[1672562099301,40.0,9.7431,9.7353,24.3032]
[1672562099505,97.06,9.743,9.7353,24.3032]
[1672562099716,97.06,9.743,9.7349,118.1957]
[1672562099717,40.0,9.7429,9.7354,24.3032]
[1672562099922,97.06,9.7428,9.7354,24.3032]
[1672562100243,40.0,9.7427,9.7354,24.3032]
[1672562100437,40.0,9.7425,9.7354,24.3032]
[1672562100648,97.07,9.7424,9.7354,24.3032]
[1672562100854,40.0,9.7423,9.7354,24.3032]
[1672562101069,40.0,9.7421,9.7354,24.3032]
[1672562101280,40.0,9.7419,9.7354,24.3032]
[1672562101488,77.07,9.7418,9.7354,24.3032]
[1672562101720,40.0,9.7417,9.7354,24.3032]
[1672562101910,40.0,9.7415,9.7354,24.3032]
[1672562102122,77.07,9.7414,9.7354,24.3032]
[1672562102330,40.0,9.7415,9.7354,24.3032]
[1672562102549,13.20582366,9.7413,9.7354,24.3032]
[1672562102756,40.0,9.7411,9.7308,1552.41975808]
[1672562102972,40.0,9.7409,9.7308,1552.41975808]
[1672562103179,97.08,9.7408,9.7308,1552.41975808]
[1672562103394,40.0,9.7407,9.7308,1552.41975808]
[1672562103601,97.08,9.7406,9.7308,1552.41975808]
[1672562103812,40.0,9.7405,9.7308,1552.41975808]
[1672562104029,75.93292276,9.7382,9.7308,1552.41975808]
[1672562104242,40.0,9.738,9.7308,1552.41975808]
[1672562104433,97.1,9.7379,9.7308,1552.41975808]
[1672562104644,40.0,9.7378,9.7308,1552.41975808]
[1672562104858,40.0,9.7376,9.7308,1552.41975808]
[1672562105069,40.0,9.7374,9.7308,1552.41975808]
[1672562105380,40.0,9.7372,9.7308,1552.41975808]
[1672562105597,97.11,9.7371,9.7308,1552.41975808]
[1672562106017,110.31582366,9.7371,9.7308,1552.41975808]
[1672562106232,13.20582366,9.737,9.7308,1552.41975808]
[1672562106440,97.11,9.7369,9.7308,1552.41975808]
[1672562106762,13.20582366,9.7368,9.7308,1552.41975808]
[1672562106955,97.11,9.7367,9.7308,1552.41975808]
[1672562107378,110.31582366,9.7367,9.7308,1552.41975808]
[1672562108339,20.0,9.7367,9.7308,1552.41975808]
[1672562108531,20.0,9.7377,9.7309,40.0]
[1672562108969,77.11,9.7376,9.7309,40.0]
[1672562109171,20.0,9.7375,9.7309,40.0]
[1672562109384,77.11,9.7374,9.7309,40.0]
[1672562109598,20.0,9.7373,9.7309,40.0]
[1672562110119,20.0,9.7375,9.7309,40.0]
[1672562110329,63.90939398,9.7378,9.7309,40.0]
[1672562110330,20.0,9.7377,9.7309,40.0]
[1672562110855,77.11,9.7376,9.7309,40.0]
[1672562111068,20.0,9.7375,9.7308,1552.41975808]
[1672562111266,77.11,9.7374,9.7308,1552.41975808]
[1672562111472,20.0,9.7373,9.7308,1552.41975808]
[1672562111905,20.0,9.7376,9.7309,40.0]
[1672562112110,77.11,9.7375,9.7309,40.0]
[1672562112330,20.0,9.7374,9.7309,40.0]
[1672562112955,20.0,9.7376,9.7309,40.0]
[1672562113157,77.11,9.7375,9.7309,40.0]
[1672562113377,20.0,9.7374,9.7309,40.0]
[1672562114115,20.0,9.7374,9.7308,1552.41975808]
[1672562114116,13.20582366,9.7374,9.7308,1552.41975808]
[1672562114327,40.0,9.7372,9.7308,1552.41975808]
[1672562114526,97.11,9.7371,9.7308,1552.41975808]
[1672562114744,110.31582366,9.7371,9.7308,1552.41975808]
[1672562115068,40.0,9.7369,9.7308,1552.41975808]
[1672562115250,40.0,9.7367,9.7308,1552.41975808]
[1672562115465,20.0,9.7366,9.7308,1552.41975808]
[1672562115675,20.0,9.7366,9.7309,40.0]
[1672562115898,20.0,9.7366,9.7308,1552.41975808]
[1672562116117,20.0,9.7366,9.7309,40.0]
[1672562116523,20.0,9.7382,9.7309,40.0]
[1672562116870,77.1,9.7381,9.7309,40.0]
[1672562117049,20.0,9.738,9.7309,40.0]
[1672562117254,77.1,9.7379,9.7308,1552.41975808]
[1672562117469,20.0,9.7378,9.7308,1552.41975808]
[1672562117670,40.0,9.7377,9.7308,1552.41975808]
[1672562117881,97.11,9.7376,9.7308,1552.41975808]
[1672562118299,40.0,9.7374,9.7308,1552.41975808]
[1672562118511,97.11,9.7373,9.7259,40.0]
[1672562118727,40.0,9.7372,9.7286,40.0]
[1672562118947,97.11,9.7371,9.7286,40.0]
[1672562119150,110.31582366,9.7371,9.7286,40.0]
[1672562119365,13.20582366,9.737,9.7286,40.0]
[1672562119572,97.11,9.7369,9.7286,40.0]
[1672562120009,13.20582366,9.7368,9.7286,40.0]
[1672562120417,97.11,9.7367,9.7286,40.0]
[1672562120736,13.20582366,9.7366,9.7286,40.0]
[1672562120956,20.0,9.7365,9.7286,347.0]
[1672562121167,20.0,9.7365,9.7288,307.0]
[1672562121367,20.0,9.7365,9.7289,1669.89293701]
[1672562121581,20.0,9.7368,9.7291,347.0]
[1672562121793,20.0,9.7368,9.7293,307.0]
[1672562121989,20.0,9.7368,9.7294,1552.6431416]
[1672562122195,130.31582366,9.7367,9.7294,1552.6431416]
[1672562122508,40.0,9.7365,9.7294,1552.6431416]
[1672562122718,97.11,9.7364,9.7294,1552.6431416]
[1672562122929,40.0,9.7363,9.7294,1552.6431416]
[1672562123151,40.0,9.7361,9.7294,1552.6431416]
[1672562123366,40.0,9.7361,9.7174,77.27]
[1672562123367,40.0,9.7297,9.7174,77.27]
[1672562123572,75.43775834,9.7285,9.7174,118.9756]
[1672562123783,77.18,9.7284,9.7176,40.0]
[1672562123999,89.17874293,9.7296,9.7176,40.0]
[1672562124210,60.30682929,9.7359,9.7176,40.0]
[1672562124211,40.0,9.7351,9.7178,40.0]
[1672562124402,40.0,9.7351,9.7181,40.0]
[1672562124403,13.20582366,9.7335,9.7181,40.0]
[1672562124615,97.14,9.7334,9.7184,40.0]
[1672562124838,174.43190508,9.7334,9.7186,307.0]
[1672562125037,77.29190508,9.7333,9.7188,347.0]
[1672562125249,97.14,9.7332,9.7191,40.0]
[1672562125458,97.14,9.7332,9.7193,307.0]
[1672562125669,77.29190508,9.7331,9.7195,307.0]
[1672562125880,97.14,9.733,9.7197,307.0]
[1672562126107,20.0,9.733,9.72,40.0]
[1672562126316,20.0,9.733,9.7203,40.0]
[1672562126518,20.0,9.7351,9.7253,307.0]
[1672562126731,120.2196,9.7358,9.7256,40.0]
[1672562126942,43.0996,9.7358,9.7259,40.0]
[1672562127564,100.2196,9.7357,9.7261,40.0]
[1672562127773,20.0,9.7356,9.7261,40.0]
[1672562127991,20.0,9.7356,9.7261,347.0]
[1672562128209,23.0996,9.7355,9.7263,307.0]
[1672562128402,20.0,9.7354,9.7264,40.0]
[1672562128832,23.0996,9.7353,9.7266,40.0]
[1672562129044,20.0,9.7352,9.7266,40.0]
[1672562129449,20.0,9.7352,9.7267,24.6861]
[1672562129882,20.0,9.7352,9.7268,40.0]
[1672562130098,20.0,9.7352,9.727,40.0]
[1672562130289,20.0,9.7352,9.7273,40.0]
[1672562130496,20.0,9.7352,9.7275,307.0]
[1672562130829,20.0,9.7352,9.7278,40.0]
[1672562131042,20.0,9.7352,9.728,40.0]
[1672562133250,20.0,9.7352,9.7278,77.18]
[1672562133448,77.12,9.7351,9.7277,24.6861]
[1672562133775,20.0,9.735,9.7277,24.6861]
[1672562133982,77.13,9.7349,9.7277,24.6861]
[1672562134199,20.0,9.7348,9.7277,24.6861]
[1672562134405,77.13,9.7347,9.7277,24.6861]
[1672562134620,20.0,9.7346,9.7277,24.6861]
[1672562134829,77.13,9.7345,9.7277,24.6861]
[1672562135149,20.0,9.7344,9.7277,24.6861]
[1672562135763,20.0,9.7351,9.7277,24.6861]
[1672562135974,77.13,9.735,9.7277,24.6861]
[1672562136184,20.0,9.7349,9.7277,24.6861]
[1672562136393,77.13,9.7348,9.7277,24.6861]
[1672562136605,20.0,9.7347,9.7277,24.6861]
[1672562136819,77.13,9.7346,9.7277,24.6861]
[1672562137132,20.0,9.7345,9.7277,24.6861]
[1672562137344,77.13,9.7344,9.7277,24.6861]
[1672562137560,20.0,9.7343,9.7277,24.6861]
[1672562138280,20.0,9.7351,9.7277,24.6861]
[1672562138491,77.13,9.735,9.7277,24.6861]
[1672562138812,20.0,9.7349,9.7277,24.6861]
[1672562139020,77.13,9.7348,9.7277,24.6861]
[1672562139230,20.0,9.7347,9.7277,24.6861]
[1672562139442,77.13,9.7346,9.7277,24.6861]
[1672562139652,20.0,9.7345,9.7277,24.6861]
[1672562139875,77.13,9.7344,9.7277,24.6861]
[1672562140192,20.0,9.7343,9.7277,24.6861]
[1672562140511,77.13,9.7342,9.7277,24.6861]
[1672562140710,20.0,9.7341,9.7277,24.6861]
[1672562140906,20.0,9.7343,9.7277,24.6861]
[1672562141347,20.0,9.735,9.7277,24.6861]
[1672562141665,77.13,9.7349,9.7277,24.6861]
[1672562141868,20.0,9.7348,9.7277,24.6861]
[1672562142275,77.13,9.7347,9.7277,24.6861]
[1672562142490,20.0,9.7346,9.7277,24.6861]
[1672562142698,77.13,9.7345,9.7277,24.6861]
[1672562143023,20.0,9.7344,9.7277,24.6861]
[1672562143222,77.13,9.7343,9.7277,24.6861]
[1672562143430,20.0,9.7342,9.7277,24.6861]
[1672562143646,77.13,9.7341,9.7277,24.6861]
[1672562143856,40.0,9.7339,9.7277,24.6861]
[1672562144172,90.34582366,9.7338,9.7277,24.6861]
[1672562144387,20.0,9.7337,9.7277,24.6861]
[1672562144599,77.14,9.7336,9.7277,24.6861]
[1672562144792,20.0,9.7335,9.7277,24.6861]
[1672562145010,77.14,9.7334,9.7277,24.6861]
[1672562145218,20.0,9.7333,9.7277,24.6861]
[1672562145429,77.14,9.7332,9.7277,24.6861]
[1672562145640,20.0,9.7331,9.7277,24.6861]
[1672562145850,77.14,9.733,9.7277,24.6861]
[1672562146162,20.0,9.7329,9.7277,24.6861]
[1672562146378,77.14,9.7328,9.7277,24.6861]
[1672562146940,20.0,9.7327,9.7277,24.6861]
[1672562147145,77.14,9.7326,9.7277,24.6861]
[1672562147344,20.0,9.7325,9.7277,24.6861]
[1672562147556,77.15,9.7324,9.7277,24.6861]
[1672562147866,20.0,9.7323,9.7277,24.6861]
[1672562148075,77.15,9.7322,9.7277,24.6861]
[1672562148287,20.0,9.7321,9.7277,24.6861]
[1672562148911,20.0,9.7335,9.7277,24.6861]
[1672562149123,77.14,9.7334,9.7277,24.6861]
[1672562149333,20.0,9.7333,9.7277,24.6861]
[1672562149550,77.14,9.7332,9.7277,24.6861]
[1672562149772,77.14,9.7332,9.711,40.0]
[1672562149773,40.0,9.7291,9.711,40.0]
[1672562150087,97.17,9.729,9.711,40.0]
[1672562150284,40.0,9.7289,9.711,40.0]
[1672562150491,40.0,9.7289,9.7113,40.0]
[1672562150492,40.0,9.7287,9.7113,40.0]
[1672562150709,40.0,9.7285,9.7113,40.0]
[1672562150910,97.18,9.7284,9.7113,40.0]
[1672562151132,40.0,9.7283,9.7115,347.0]
[1672562151340,97.18,9.7282,9.7115,347.0]
[1672562151643,40.0,9.7281,9.7115,347.0]
[1672562151864,40.0,9.7281,9.7118,40.0]
[1672562151865,40.0,9.7279,9.7118,40.0]
[1672562152189,40.0,9.7277,9.7118,40.0]
[1672562152404,97.18,9.7276,9.7121,40.0]
[1672562152714,40.0,9.7275,9.7121,40.0]
[1672562152905,40.0,9.7273,9.7124,40.0]
[1672562153113,40.0,9.7271,9.7124,40.0]
[1672562153344,77.19,9.727,9.7126,347.0]
[1672562153537,40.0,9.7268,9.7129,40.0]
[1672562153752,97.19,9.7267,9.7131,307.0]
[1672562153974,97.19,9.7267,9.7129,40.0]
[1672562153975,97.19,9.7267,9.7133,307.0]
[1672562154184,46.7577,9.7266,9.7135,347.0]
[1672562154373,40.0,9.7264,9.7138,40.0]
[1672562154705,97.19,9.7263,9.714,40.0]
[1672562154912,120.394,9.7263,9.7143,40.0]
[1672562155126,120.394,9.7263,9.7145,307.0]